Cogmind - Beta 15 @@@ ROGUE MODE // 2025.07.13 @ 21:58:07 Player: beans Result: Destroyed by S-10 Pest with Light Assault Rifle Performance ------------- Evolutions (0) 0 Regions Visited (2) 400 Robots Destroyed (32) 160 Value Destroyed (753) 753 Prototype IDs (2) 40 Alien Tech Used (0) 0 Bonus (0) 0 TOTAL SCORE: 1353 Bonus ------- None Cogmind --------- Core Integrity 0/250 Matter 288/300 Energy 97/100 System Corruption 0% Temperature Cool (0) Movement Core (100) Ox1 Location -10/Mines Parts ------- > --- POWER (1) -------- (None) > --- PROPULSION (2) --- (None) > --- UTILITY (2) ------ Signal Interpreter > --- WEAPON (2) ------- Assault Rifle Light Cannon > --- INVENTORY (5) ---- Assault Rifle Grenade Launcher Peak State ------------ > --- POWER ------------ Ion Engine > --- PROPULSION ------- Light Treads Light Treads > --- UTILITY ---------- Signal Interpreter > --- WEAPON ----------- Grenade Launcher Datajack > --- INVENTORY -------- Assault Rifle Assault Rifle Light Cannon [Rating: 6] Favorites ----------- Power Ion Engine Engine Ion Engine Propulsion Light Treads Treads Light Treads Utility Signal Interpreter Processor Signal Interpreter Weapon Grenade Launcher Ballistic Gun Assault Rifle Ballistic Cannon Light Cannon Launcher Grenade Launcher Special Melee Weapon Datajack Build | -11 -10 -10 ------- Run | Yrd Mat Min Slots Evolved . | . . . Power . | . . . Propulsion . | . . . Utility . | . . . Weapon . | . . . Parts Attached 10 | 5 5 . Power 1 | 1 . . Engine 1 | 1 . . Core . | . . . Reactor . | . . . Propulsion 2 | 2 . . Treads 2 | 2 . . Leg . | . . . Wheel . | . . . Hover . | . . . Flight . | . . . Utility 1 | . 1 . Device . | . . . Storage . | . . . Processor 1 | . 1 . Hackware . | . . . Protection . | . . . Artifact . | . . . Weapon 6 | 2 4 . Energy Gun . | . . . Energy Cannon . | . . . Ballistic Gun 2 | 2 . . Ballistic Cannon 1 | . 1 . Launcher 2 | . 2 . Special Weapon . | . . . Impact Weapon . | . . . Slashing Weapon . | . . . Piercing Weapon . | . . . Special Melee Weapon 1 | . 1 . Unidentified Prototypes . | . . . Parts Lost 5 | . 3 2 Power 1 | . 1 . Propulsion 2 | . . 2 Utility . | . . . Weapon 2 | . 2 . Highest Loss Streak 2 | . 2 2 To Critical Strikes . | . . . Average Backups 1 | . 2 2 Power . | . . . Propulsion . | . . . Utility . | . . . Weapon 1 | . 1 2 Tool/Special . | . . . Unused Backups . | . . . Power . | . . . Propulsion . | . . . Utility . | . . . Weapon . | . . . Tool/Special . | . . . Average Slot Usage (%) 70 | . 71 68 Engine 6 | . 7 . Treads 27 | . 27 25 Processor 9 | . 8 14 Ballistic Gun 9 | . 9 14 Ballistic Cannon 2 | . 2 1 Launcher 11 | . 10 12 Special Melee Weapon 3 | . 4 . Peak Build Rating 6 | 5 6 5 Average Rating 4 | 3 5 4 On Entrance 3 | . 5 5 Naked Turns . | . . . Heaviest Build 10 | 9 10 5 Greatest Support 40 | 40 40 40 Greatest Overweight (x) . | . . . Average Overweight (x) . | . . . Largest Inventory Capacity 5 | 5 5 5 Average Capacity 5 | 5 5 5 Most Carried 5 | 3 5 2 Average Carried 1 | . 2 2 Final Capacity 5 | 5 5 5 Final Carried 2 | . 2 2 Class Distribution -------------------- 100% | Mutant Dominant Class ---------------- Mutant | -10/Materials Mutant | -10/Mines Resources | -11 -10 -10 ----------- Run | Yrd Mat Min Matter Collected 852 | 209 566 77 Remotely . | . . . Salvage Created 719 | . 693 26 Parts 48 | . 48 . Haulers Intercepted 2 | . 2 . Recyclers Shooed 2 | . 2 . Parts Field Recycled . | . . . Retrieved Matter . | . . . Parts Self-Destructed . | . . . Prevented . | . . . Kills | -11 -10 -10 ------- Run | Yrd Mat Min Combat Hostiles Destroyed 18 | . 16 2 Guns 4 | . 3 1 Cannons 5 | . 4 1 AOE 9 | . 9 . Classes Destroyed 10 | . 10 . Worker 2 | . 2 . Builder 3 | . 3 . Tunneler 1 | . 1 . Hauler 2 | . 2 . Recycler 2 | . 2 . Operator 1 | . 1 . Watcher 3 | . 3 . Swarmer 5 | . 3 2 Grunt 10 | . 10 . Subdweller 3 | . 3 . Best Kill Streak 8 | . 8 2 Combat Bots Only 4 | . 4 2 Max Kills in Single Turn 3 | . 3 1 Gunslinging . | . . . Exploded 2 | . 2 . Melee . | . . . Uniques/NPCs Destroyed . | . . . Combat | -11 -10 -10 -------- Run | Yrd Mat Min Hostile Shots Fired 90 | . 69 21 Missed 30 | . 27 3 Hits 60 | . 42 18 Projectile 60 | . 42 18 Damage Taken 902 | . 703 199 Core 255 | . 203 52 Absorbed by Shields . | . . . Core Remaining (%) 100 | 100 . . Volleys Fired 62 | . 55 7 Largest 2 | . 2 2 Hottest 50 | . 50 50 Shots Fired 103 | . 89 14 Gun 46 | . 39 7 Cannon 29 | . 23 6 Launcher 28 | . 27 1 Special . | . . . Kinetic 75 | . 62 13 Thermal . | . . . Explosive 28 | . 27 1 Electromagnetic . | . . . Robot Hit Streak 9 | . 9 5 Robot Miss Streak 4 | . 4 1 Penetration Max . | . . . Secondary Targets 1 | . 1 . Max Gunslinging Chain 1 | . 1 . Shots Hit Robots 54 | . 44 10 Core Hits 48 | . 46 2 Critical Kills . | . . . Critical Parts Destroyed . | . . . Critical Strikes 2 | . 1 1 Blast 2 | . 1 1 Melee Attacks 1 | . 1 . Impact . | . . . Slashing . | . . . Piercing . | . . . Sneak Attacks 1 | . 1 . Combat Hostiles . | . . . Follow-up Attacks . | . . . Damage Inflicted 2160 | . 2011 149 Guns 370 | . 278 92 Cannons 319 | . 262 57 Explosions 1471 | . 1471 . Melee . | . . . Ramming . | . . . Kinetic 689 | . 540 149 Thermal . | . . . Explosive 1471 | . 1471 . Electromagnetic . | . . . Impact . | . . . Slashing . | . . . Piercing . | . . . Highest Corruption . | . . . Average Corruption . | . . . Corruption Purged . | . . . Corruption Blocked . | . . . Overload Shots . | . . . Overflow Damage 20 | . 20 . Projectiles . | . . . Explosions 20 | . 20 . Melee . | . . . Knockbacks 3 | . 2 1 Impact . | . . . Kinetic 3 | . 2 1 Secondary . | . . . Self-Inflicted Damage 227 | . 190 37 Shots 9 | . 8 1 Rammed . | . . . Targets Rammed . | . . . Kicked . | . . . Crushed . | . . . Highest Temperature 5 | . 5 . Average Temperature 2 | . 2 . Received Heat Transfer 243 | . 243 . Siege Activations . | . . . Martial Activations . | . . . Shielding Activations . | . . . Robots Disrupted . | . . . Combat Hostiles . | . . . Robots Corrupted . | . . . Combat Hostiles . | . . . Parts Fried . | . . . Impact Corruptions . | . . . Robots Melted . | . . . Combat Hostiles . | . . . Parts Melted . | . . . Heat Transferred . | . . . Parts Sabotaged . | . . . Parts Stolen . | . . . Parts Stripped . | . . . Power Chain Reactions . | . . . Alert | -11 -10 -10 ------- Run | Yrd Mat Min Maximum Alert Level 1 | . 1 . Low Security (%) 49 | 100 39 100 Level 1 50 | . 60 . Level 2 . | . . . Level 3 . | . . . Level 4 . | . . . Level 5 . | . . . High Security . | . . . Max Security . | . . . Peak Influence 383 | . 383 44 Initial 44 | . . 44 Average 174 | . 207 12 Influence Increases 712 | . 654 58 Destroy 0b10 Robot/C 300 | . 260 40 Destroy 0b10 Robot/NC 70 | . 70 . Destroy Leader 70 | . 60 10 Successful Hack 4 | . 4 . Disable Machine 150 | . 150 . Destroy Structure 118 | . 110 8 Influence Decreases 684 | . 540 144 Entered New Map 70 | . . 70 Time Decay 564 | . 510 54 Lost Part 50 | . 30 20 Squads Dispatched 1 | . 1 . Investigation . | . . . Extermination . | . . . Reinforcement 1 | . 1 . Assault . | . . . Garrison . | . . . Intercept . | . . . Searches Triggered . | . . . Construction Impeded . | . . . Haulers Reinforced . | . . . Active Scanning Responses . | . . . Cargo Convoy Interrupts . | . . . Stealth | -11 -10 -10 --------- Run | Yrd Mat Min Distress Signals 1 | . 1 . Communications Jammed . | . . . Distress Signals . | . . . Times Spotted 26 | . 23 3 Peak Tracking Total 4 | . 4 3 Tactical Retreats . | . . . Traps | -11 -10 -10 ------- Run | Yrd Mat Min Traps Triggered 1 | . 1 . Indirectly . | . . . Trap Hack Attempts . | . . . Triggered . | . . . Disarmed . | . . . Reprogrammed . | . . . Reused . | . . . Traps Extracted . | . . . Installed . | . . . Triggered . | . . . Machines | -11 -10 -10 ---------- Run | Yrd Mat Min Machines Disabled 10 | . 10 . Max in Single Turn 3 | . 3 . Machines Repaired . | . . . Machines Dismantled . | . . . Machines Sabotaged . | . . . Overloaded Fab Kills . | . . . Hacking | -11 -10 -10 --------- Run | Yrd Mat Min Machines Accessed 1 | . 1 . Terminals 1 | . 1 . Fabricators . | . . . Repair Stations . | . . . Recycling Units . | . . . Scanalyzers . | . . . Garrison Access . | . . . Total Hacks 3 | . 3 . Successful 3 | . 3 . Failed . | . . . Catastrophic . | . . . Database Lockouts . | . . . Manual . | . . . Terminals 3 | . 3 . Fabricators . | . . . Repair Stations . | . . . Recycling Units . | . . . Scanalyzers . | . . . Garrison Access . | . . . Terminal Hacks 3 | . 3 . Record 1 | . 1 . Prototype ID Bank 1 | . 1 . Emergency Access Points 1 | . 1 . Fabricator Hacks . | . . . Repair Station Hacks . | . . . Recycling Unit Hacks . | . . . Scanalyzer . | . . . Garrison Access Hacks . | . . . Unauthorized Hacks . | . . . Terminals . | . . . Fabricators . | . . . Repair Stations . | . . . Recycling Units . | . . . Scanalyzers . | . . . Garrison Access . | . . . Data Cores Recovered . | . . . Used . | . . . Hacking Detections . | . . . Full Trace Events . | . . . Feedback Events . | . . . Feedback Blocked . | . . . Robot Schematics Acquired . | . . . Robots Built . | . . . Authchips . | . . . Time . | . . . Total Robot Build Rating . | . . . Part Schematics Acquired . | . . . Parts Built . | . . . Authchips . | . . . Time . | . . . Total Part Build Rating . | . . . Parts Repaired . | . . . Time . | . . . Parts Recycled . | . . . Recycled Matter . | . . . Retrieved Matter . | . . . Retrieved Components . | . . . Parts Scanalyzed . | . . . Part Schematics Acquired . | . . . Parts Damaged . | . . . Bothacking | -11 -10 -10 ------------ Run | Yrd Mat Min Used RIF Installer . | . . . Robots Hacked 1 | . 1 . Non-combat 1 | . 1 . Combat . | . . . Robot Hacks Applied 1 | . 1 . no_distress 1 | . 1 . Relay Couplers Released . | . . . Fabnet Peak Effective % . | . . . Robots Rewired . | . . . Allies Hacked . | . . . Hacks Repelled . | . . . Allies | -11 -10 -10 -------- Run | Yrd Mat Min Total Allies . | . . . Largest Group . | . . . Highest-Rated Group . | . . . Highest-Rated Ally . | . . . Total Orders . | . . . Ally Attacks . | . . . Total Damage . | . . . Kills . | . . . Allies Corrupted . | . . . Allies Melted . | . . . Intel | -11 -10 -10 ------- Run | Yrd Mat Min Active Infowar (turns) . | . . . Robot Analysis Total . | . . . Derelict Logs Recovered 1 | . . 1 Drone Launches . | . . . Drone Recoveries . | . . . Exploration | -11 -10 -10 ------------- Run | Yrd Mat Min Turns Passed 1899 | 71 1582 246 Spaces Moved 1074 | 46 887 141 Core 14 | 10 4 . Treads 1060 | 36 883 141 Legs . | . . . Wheels . | . . . Hover . | . . . Flight . | . . . Fastest Speed 50 | 50 50 160 Average Speed 158 | 136 159 160 Slowest Speed 160 | 160 160 160 Overloaded Moves . | . . . Propulsion Burnouts . | . . . Robots Hopped . | . . . Potential Cave-ins . | . . . Cave-ins Triggered . | . . . Exploration Rate (%) 44 | 4 99 29 Regions Visited 2 Branch Regions 1 Pre-discovered Areas 1 | . . 1 Known Exits Taken 1 | . 1 . Unknown Exits Taken 1 | 1 . . Scrap Searched 1 | . . 1 Spaces Dug 5 | . 5 . Terrain Destroyed 123 | . 114 9 Melee . | . . . Projectile 1 | . . 1 AOE 122 | . 114 8 Terrain Rammed . | . . . Walls Destroyed . | . . . Machines Disabled . | . . . Actions | -11 -10 -10 --------- Run | Yrd Mat Min Total 1167 | 55 963 149 Wait 4 | . 4 . Move 1072 | 45 886 141 Hop . | . . . Pick Up 13 | 5 8 . Fast Attach . | . . . Attach 11 | 5 6 . Detach . | . . . Swap 4 | . 3 1 Drop . | . . . Fire 62 | . 55 7 Melee 1 | . 1 . Ram . | . . . Kick . | . . . Crush . | . . . Escape Stasis . | . . . Rewire . | . . . Trap . | . . . Miscellaneous . | . . . Route ------- -11/Scrapyard -10/Materials (discovered 5 exits: *Mat x3 / *Min x2) -10/Mines (discovered 1 exit: *Mat) History --------- Turn | Location | Event 14 | -11/Scrapyard | Discovered new exit (range 16) 72 | -11/Scrapyard | Entered Materials 195 | -10/Materials | Discovered new exit (range 8) 308 | -10/Materials | Discovered new exit (range 14) 309 | -10/Materials | Build established: Mutant 382 | -10/Materials | Core integrity fell below 50% 672 | -10/Materials | Derelicts attacked the area 687 | -10/Materials | Discovered new exit (range 16) 732 | -10/Materials | Identified exit to Mines 851 | -10/Materials | Discovered new exit (range 8) 982 | -10/Materials | Core integrity fell below 20% 1162 | -10/Materials | Identified exit to Materials 1367 | -10/Materials | Discovered exit to Mines (range 6) 1654 | -10/Materials | Entered Mines 1707 | -10/Mines | Learned location of Mines (-8) 1710 | -10/Mines | Discovered exit to Materials (range 8) 1900 | -10/Mines | Destroyed by S-10 Pest with Light Assault Rifle Last Messages --------------- Found Com. Wheel. Found Mining Laser. Found Sml. Battery. Found 53 Matter. Found 54 Matter. Acquired 29 matter. S-10 Pest destroyed. Acquired 13 matter. Lgt. Treads destroyed. Acquired 10 matter. Lgt. Treads destroyed. Acquired 2 matter. Destroyed Flight Unit. S-10 Pest Lgt. Ion Engine blasted off. S-10 Pest knocked back. Acquired 7 matter. Destroyed Flight Unit. S-10 Pest destroyed. Acquired 7 matter. Acquired 2 matter. Map ----- +----------------------------------------------------+ | ??????????? ###### #?# < #?? | | ????????????####### ##????## ####?## #?? | | ??????????????????## #??????# ##????## ##?? | | ???????????????????## ##??????# ##????####??? | | ????????????????????#####?###???## ##?????????? | | ?????????????????????????## #???## #?????????? | | ?????????????????????????# ##?## #?????????? | | ??????????????????????????# ## #?????????? | | ?????????????????????????????# ##?????????? | | ?????????????????????????????## ##??????????? | | ??????????????????????????????# ##???????????? | | ??????????????????????????????# ##????????????? | | ??????????????????????????????## #?????????????? | | ???????????????????????????????## #?????????????? | | ????????????????????????????????# #?????????????? | | ????????????????????????????????# #?????????????? | | ????????????????????????????????# #?????????????? | | ????????????????????????????????# #?????????????? | | ????????????????????????????????# #?????????????? | | ????????????????????????????????# ####### #?????? | | ????????????????????????????????# #?????? | | ????????????????????????????????# ########??????? | | ??????????????????????##????????# #?????????????? | | ??????????????????????# ####????# #?????????????? | | ?????????????????????### % ###### #?????????????? | | ?????????????????????#|%*@= t #?????????????? | | ?????????????????????#s % ##### #?????????????? | | ?????????????????????# ######???# ???????????? | | ?????????????????????# #????????#######??????????? | | ?????????????????????# #?????????????????????????? | | ?????????????????????# #?????????????????????????? | | ?????????????????????# #?????????????????????????? | | ?????????????????????# #?????????????????????????? | | ?????????????????????# #?????????????????????????? | | ?????????????????????# #?????????????????????????? | | ?????????????????????# #?????????????????????????? | | ?????????????????????? ??????????????????????????? | | ?????????????????????? ??????????????????????????? | | ?????????????????????? ??????????????????????????? | | ?????????????????????? ??????????????????????????? | | ?????????????????????? ??????????????????????????? | | ?????????????????????? ??????????????????????????? | | ?????????????????????? ??????????????????????????? | | ?????????????????????????????????????????????????? | | ?????????????????????????????????????????????????? | | ?????????????????????????????????????????????????? | | ?????????????????????????????????????????????????? | | ?????????????????????????????????????????????????? | | ?????????????????????????????????????????????????? | | ?????????????????????????????????????????????????? | +----------------------------------------------------+ Best States ------------- Heat Dissipation 25 Energy Generation 10 Energy Capacity 250 Matter Stores 300 Matter Capacity 300 Sight Range 16 Terrain Scan Density 10 Evasion (%) 50 Recoil Reduction 2 Item Schematics ----------------- None Robot Schematics ------------------ None Fabricated ------------ Nothing Repaired ---------- Nothing Alien Tech Used ----------------- None Achievements -------------- None Challenges ------------ None Game ------ Seed FireGammaKit Manual? 0 Play Time 00:09:09 Cumulative 47.4 hours Start 2025.07.13 @ 21:49:21 End 2025.07.13 @ 21:58:07 Sessions 1 Manual Loads 0 Difficulty Rogue Special Mode None Game No. 223 Rogue 223 Adventurer 0 Explorer 0 Win Type - Total 0 Types 0/0/0/0/0/0/0/0/0/0 Lore% 32 Gallery% 26 Achievement% 23 Wizard Run 0 Options --------- Layout 2 ASCII 0 Keyboard 0 Movement Mouse Keybinds 0 Fullscreen 1 Font 24/Smallcaps Map View 50x44 Zoom Use 0% Tactical HUD 0 Map Filters NONE Filters NONE Steam 1 RUN: 8a0ad5f6-c6ea-422d-b1b6-44149851d177